bitfinex-derivatives/quotes_SOLF0:USTF0_20241107
["timestamp","ask_amount","ask_price","bid_price","bid_amount"]
[1731013651351,2.5231,197.89,197.82,7.76379926]
[1731013651551,7.76379926,197.91,197.86,7.76379926]
[1731013651752,0.75660309,197.9,197.86,7.76379926]
[1731013651956,7.76379926,197.91,197.86,7.76379926]
[1731013652164,10.28649926,197.91,197.86,7.76379926]
[1731013652654,7.76379926,197.9,197.84,7.76379926]
[1731013652857,7.76379926,197.88,197.81,2.524]
[1731013653046,7.76379926,197.88,197.83,7.76379926]
[1731013653652,2.5233,197.87,197.83,7.76379926]
[1731013654749,2.5234,197.86,197.83,7.76379926]
[1731013655756,2.5234,197.86,197.76,1.2014]
[1731013655757,7.76379926,197.86,197.76,1.2014]
[1731013655958,7.76379926,197.86,197.79,7.76379926]
[1731013656659,2.5236,197.84,197.79,7.76379926]
[1731013657961,2.5238,197.83,197.79,7.76379926]
[1731013658158,2.5238,197.83,197.81,7.76379926]
[1731013660860,2.5238,197.83,197.79,7.76379926]
[1731013661058,2.5239,197.82,197.79,7.76379926]
[1731013661462,2.5239,197.82,197.77,2.5245]
[1731013661661,2.5239,197.82,197.78,7.76379926]
[1731013662058,2.5239,197.82,197.8,7.76379926]
[1731013662464,2.5237,197.84,197.8,7.76379926]
[1731013662671,2.5237,197.84,197.82,7.76379926]
[1731013663666,35.347481,197.92,197.82,7.76379926]
[1731013663970,7.76379926,197.89,197.82,7.76379926]
[1731013664266,0.75661652,197.88,197.82,7.76379926]
[1731013664466,2.5233,197.87,197.84,7.76379926]
[1731013666468,35.347481,197.92,197.84,7.76379926]
[1731013666664,0.75658964,197.91,197.86,7.76379926]
[1731013666863,0.75658964,197.91,197.86,10.32455412]
[1731013667267,0.75658482,197.9,197.86,10.32455412]
[1731013667569,8.52038408,197.89,197.83,1.2621]
[1731013667770,0.75658482,197.88,197.83,9.02589926]
[1731013668166,2.5235,197.86,197.83,9.02589926]
[1731013668867,2.5233,197.87,197.83,9.02589926]
[1731013669065,2.5233,197.87,197.83,1.2621]
[1731013669367,10.28689926,197.89,197.8,4.16]
[1731013669570,0.75660186,197.88,197.83,7.76379926]
[1731013670072,2.5234,197.87,197.83,7.76379926]
[1731013670864,2.5234,197.86,197.83,7.76379926]
[1731013671165,2.5234,197.86,197.79,4.16]
[1731013671166,7.76379926,197.89,197.82,2.5238]
[1731013671359,35.347481,197.92,197.83,7.76379926]
[1731013671564,7.76379926,197.9,197.83,7.76379926]
[1731013671866,0.75659446,197.89,197.83,7.76379926]
[1731013672469,2.5234,197.87,197.85,7.76379926]
[1731013672670,7.76379926,197.91,197.86,2.50193046]
[1731013672863,7.76379926,197.89,197.78,1.1772]
[1731013673065,2.5235,197.86,197.8,2.5241]
[1731013673268,2.5235,197.86,197.82,7.76379926]
[1731013674070,2.5235,197.86,197.84,7.76379926]
[1731013675275,2.5232,197.88,197.84,7.76379926]
[1731013675475,2.5232,197.88,197.85,2.57590826]
[1731013675671,2.5232,197.88,197.84,7.76379926]
[1731013676062,7.76379926,197.89,197.85,2.55798144]
[1731013676673,2.5235,197.87,197.85,2.55798144]
[1731013677576,2.5235,197.87,197.84,7.76379926]
[1731013677777,2.5234,197.88,197.85,2.46556991]
[1731013678074,7.76379926,197.9,197.85,2.46556991]
[1731013678276,2.5235,197.87,197.84,7.76379926]
[1731013678469,2.5235,197.87,197.85,2.47566706]
[1731013679376,2.5235,197.87,197.84,7.76379926]
[1731013679973,2.5235,197.87,197.85,2.53272986]
[1731013680977,1.229,197.95,197.84,7.76379926]
[1731013681178,7.76379926,197.89,197.75,17.66157844]
[1731013681380,7.76379926,197.89,197.82,7.76379926]
[1731013681583,2.5237,197.85,197.82,7.76379926]
[1731013683578,5.389,197.95,197.82,2.5241]
[1731013683873,7.76379926,197.89,197.82,7.76379926]
[1731013684578,2.5237,197.85,197.82,7.76379926]
[1731013685273,7.76379926,197.89,197.79,4.16]
[1731013685473,7.76379926,197.89,197.82,7.76379926]
[1731013686482,2.524,197.84,197.82,7.76379926]
[1731013687473,5.389,197.95,197.82,7.76379926]
[1731013687675,7.76379926,197.87,197.75,2.49157844]
[1731013687873,7.76379926,197.82,197.69,15.17]
[1731013688069,7.76379926,197.82,197.75,7.76379926]
[1731013688273,7.76379926,197.82,197.75,10.31850749]
[1731013688474,2.5245,197.8,197.75,10.31850749]
[1731013688675,2.5245,197.8,197.75,7.76379926]
[1731013688876,7.76379926,197.82,197.75,7.76379926]
[1731013689076,2.5244,197.8,197.75,7.76379926]
[1731013689276,2.4206,197.85,197.75,7.76379926]
[1731013689580,7.76379926,197.81,197.75,7.76379926]
[1731013689779,10.28809926,197.81,197.75,7.76379926]
[1731013691780,7.76379926,197.8,197.62,5.0061814]
[1731013692088,7.76379926,197.72,197.66,7.76379926]
[1731013692386,3.92,197.81,197.66,7.76379926]
[1731013692387,7.76379926,197.74,197.66,7.76379926]
[1731013692584,3.92,197.81,197.68,7.76379926]
[1731013692773,7.76379926,197.75,197.68,7.76379926]
[1731013693279,7.76379926,197.73,197.65,2.5262]
[1731013693475,3.92,197.81,197.69,7.76379926]
[1731013693682,2.4206,197.85,197.73,7.76379926]
[1731013693978,10.28819926,197.8,197.75,7.76379926]
[1731013694584,10.28789926,197.82,197.75,7.76379926]
[1731013694883,7.76379926,197.82,197.77,7.76379926]
[1731013695285,10.28789926,197.82,197.77,7.76379926]
[1731013697182,10.28819926,197.82,197.77,7.76379926]
[1731013697383,7.76379926,197.8,197.73,2.56028985]
[1731013697584,7.76379926,197.8,197.75,7.76379926]
[1731013697987,10.28819926,197.82,197.77,7.76379926]
[1731013698487,3.92,197.84,197.77,7.76379926]
[1731013698685,7.76379926,197.84,197.79,7.76379926]
[1731013698884,2.4206,197.85,197.79,7.76379926]
[1731013699083,10.18439926,197.85,197.79,7.76379926]
[1731013699283,2.5241,197.84,197.79,7.76379926]
[1731013699480,2.4206,197.85,197.79,7.76379926]
[1731013699679,10.18439926,197.85,197.79,7.76379926]
[1731013700085,0.75684494,197.84,197.79,7.76379926]
[1731013700487,0.75684494,197.84,197.79,10.28839926]
[1731013700681,7.76379926,197.82,197.72,2.3899]
[1731013700884,7.76379926,197.82,197.78,7.76379926]
[1731013701187,10.28809926,197.82,197.78,7.76379926]
[1731013701585,7.76379926,197.82,197.78,7.76379926]
[1731013701781,2.5244,197.81,197.78,7.76379926]
[1731013703089,2.5244,197.81,197.75,2.5252]
[1731013703284,2.5244,197.81,197.76,7.76379926]
[1731013703487,0.75690149,197.8,197.76,7.76379926]
[1731013703892,10.28809926,197.82,197.76,7.76379926]
[1731013704095,0.75687748,197.81,197.76,7.76379926]
[1731013704283,0.75687748,197.81,197.78,7.76379926]
[1731013704488,2.5243,197.82,197.78,7.76379926]
[1731013704994,2.4206,197.85,197.78,7.76379926]
[1731013705191,0.75683923,197.84,197.78,10.28859926]
[1731013705394,2.4206,197.85,197.8,7.76379926]
[1731013705594,0.7568158,197.84,197.8,7.76379926]
[1731013705788,0.7568158,197.84,197.81,7.76379926]
[1731013706487,0.7568158,197.84,197.79,7.76379926]
[1731013706888,3.2809158,197.84,197.79,7.76379926]
[1731013707097,0.7568158,197.83,197.79,7.76379926]
[1731013707596,0.7568158,197.83,197.8,2.5245]
[1731013707895,9.7531709,197.86,197.8,2.5245]
[1731013708097,0.7568177,197.85,197.8,2.5245]
[1731013708695,0.7568177,197.85,197.81,10.28819926]
[1731013709092,0.7568177,197.85,197.83,7.76379926]
[1731013709487,0.75676621,197.84,197.83,7.76379926]
[1731013709687,1.2086,197.86,197.83,7.76379926]
[1731013712310,8.97239926,197.86,197.76,3.68]
[1731013712488,1.2086,197.86,197.8,7.76379926]
[1731013712694,8.97239926,197.86,197.8,7.76379926]
[1731013713095,0.75671947,197.85,197.8,7.76379926]
[1731013713301,3.28061947,197.85,197.8,7.76379926]
[1731013713590,2.5239,197.85,197.8,7.76379926]
[1731013714403,8.97239926,197.86,197.8,7.76379926]
[1731013714404,2.5241,197.84,197.8,7.76379926]
[1731013715995,2.5242,197.83,197.8,7.76379926]
[1731013717097,2.5243,197.82,197.77,7.76379926]
[1731013717596,8.5450709,197.82,197.77,7.76379926]
[1731013717793,2.5242,197.82,197.77,7.76379926]
[1731013718302,1.1739,197.85,197.72,4.8552]
[1731013718303,7.76379926,197.79,197.73,7.76379926]
[1731013718502,7.2283709,197.84,197.77,7.76379926]
[1731013718699,0.75682622,197.83,197.78,7.76379926]
[1731013719095,2.5239,197.84,197.78,7.76379926]
[1731013719610,2.524,197.83,197.78,7.76379926]
[1731013719902,6.0207709,197.85,197.81,7.76379926]
[1731013720100,0.75673279,197.84,197.81,7.76379926]
[1731013720304,1.2086,197.86,197.81,7.76379926]
[1731013720493,8.52052462,197.85,197.72,2.55181236]
[1731013720693,7.76379926,197.82,197.68,4.9582]
[1731013720897,7.76379926,197.82,197.76,7.76379926]
[1731013721100,2.5243,197.81,197.76,7.76379926]
[1731013721411,7.76379926,197.82,197.68,4.9582]
[1731013721701,2.5244,197.8,197.76,7.76379926]
[1731013721896,1.2086,197.86,197.76,7.76379926]
[1731013722099,2.5242,197.82,197.76,7.76379926]
[1731013722302,7.76379926,197.83,197.76,7.76379926]
[1731013722501,2.5242,197.81,197.78,7.76379926]
[1731013722701,7.76379926,197.83,197.78,7.76379926]
[1731013723301,2.5241,197.82,197.76,2.5249]
[1731013724007,2.524,197.83,197.77,2.5247]
[1731013725003,2.5238,197.84,197.78,2.5245]
[1731013725199,2.5238,197.84,197.75,14.60757235]
[1731013726407,2.5238,197.84,197.79,2.5244]
[1731013726605,2.5237,197.85,197.79,2.5244]
[1731013727004,6.0207709,197.89,197.81,2.5241]
[1731013727211,0.75670897,197.88,197.81,2.5241]
[1731013727408,0.75670897,197.87,197.81,2.5241]
[1731013727607,0.75670897,197.86,197.8,12.12205903]
[1731013727818,6.0207709,197.89,197.82,2.524]
[1731013728010,0.75664583,197.88,197.82,2.524]
[1731013728511,0.75664583,197.87,197.82,2.524]
[1731013728709,2.5235,197.87,197.82,2.524]
[1731013729009,18.14282993,197.9,197.8,12.12205903]
[1731013729214,6.7773739,197.89,197.71,7.55332171]
[1731013729410,2.5241,197.82,197.75,12.12205903]
[1731013729817,1.2693,197.86,197.75,12.12205903]
[1731013730014,0.75672411,197.85,197.78,2.5245]
[1731013730216,0.75672411,197.85,197.75,12.12205903]
[1731013730514,3.28052411,197.85,197.79,2.5244]
[1731013730716,2.5238,197.85,197.79,2.5244]
[1731013730915,2.5238,197.85,197.75,12.12205903]
[1731013731118,2.5238,197.85,197.79,2.5244]
[1731013731417,1.2693,197.86,197.75,12.12205903]
[1731013732217,2.524,197.83,197.77,2.5246]
[1731013732418,2.524,197.83,197.75,12.12205903]
[1731013732620,1.2693,197.86,197.75,12.12205903]
[1731013732820,2.5239,197.84,197.79,2.5244]
[1731013733514,2.5239,197.84,197.75,12.12205903]
[1731013733515,2.5237,197.85,197.8,2.5243]
[1731013734416,1.2693,197.86,197.78,12.12205903]
[1731013734617,2.5236,197.86,197.81,2.5242]
[1731013735926,2.5239,197.84,197.76,1.25]
[1731013736116,2.5239,197.84,197.76,13.37205903]
[1731013736915,2.5239,197.84,197.78,2.5246]
[1731013737125,2.5239,197.84,197.76,13.37205903]
[1731013737322,2.5239,197.84,197.77,2.5247]
[1731013738925,2.5241,197.83,197.76,14.64685903]
[1731013739126,2.5241,197.83,197.76,12.12205903]
[1731013739520,2.5241,197.83,197.77,2.5247]
[1731013739723,12.12205903,197.87,197.77,2.5247]
[1731013739933,0.75671674,197.86,197.77,2.5247]
[1731013740224,18.14156015,197.87,197.77,2.5247]
[1731013740426,2.5241,197.83,197.77,2.5247]
[1731013740821,2.5238,197.85,197.76,12.12205903]
[1731013741924,2.5236,197.86,197.8,2.5242]
[1731013743340,10.28013658,197.86,197.8,10.28083658]
[1731013743629,7.75643658,197.86,197.8,7.75643658]
[1731013744030,7.75643658,197.86,197.81,2.5239]
[1731013744525,2.5232,197.87,197.81,2.5239]
[1731013745427,7.75643658,197.88,197.8,7.75643658]
[1731013745623,2.5236,197.87,197.82,2.5242]
[1731013745822,2.5207,197.91,197.84,7.75643658]
[1731013746023,7.75643658,197.89,197.84,10.28023658]
[1731013747026,6.02134566,197.91,197.86,7.75643658]
[1731013747225,0.7565809,197.9,197.86,7.75643658]
[1731013747633,6.77792656,197.9,197.86,7.75643658]
[1731013747835,0.75658879,197.89,197.86,7.75643658]
[1731013748330,10.27973658,197.91,197.85,10.28033658]
[1731013748630,7.75643658,197.87,197.81,10.28073658]
[1731013748835,7.75643658,197.86,197.81,10.28073658]
[1731013749034,7.75643658,197.86,197.82,2.5243]
[1731013749333,7.75643658,197.86,197.81,7.75643658]
[1731013749931,2.524,197.85,197.8,10.28093658]
[1731013750334,2.524,197.85,197.8,7.75643658]
[1731013750835,3.7059,197.93,197.78,7.75643658]
[1731013750836,2.5243,197.83,197.78,7.75643658]
[1731013751035,2.5243,197.83,197.77,3.7043]
[1731013751225,7.75643658,197.82,197.77,7.75643658]
[1731013752432,3.66,197.89,197.78,7.75643658]
[1731013752637,10.28063658,197.84,197.78,10.28123658]
[1731013753631,10.28063658,197.84,197.79,2.5247]
[1731013753933,10.28063658,197.84,197.78,7.75643658]
[1731013754538,7.75643658,197.84,197.79,2.5248]
[1731013755537,10.28063658,197.84,197.78,7.75643658]
[1731013756537,10.28063658,197.84,197.71,3.7247]
[1731013756738,10.28063658,197.84,197.78,2.5249]
[1731013756942,10.28053658,197.84,197.77,7.75643658]
[1731013757838,10.28053658,197.84,197.78,2.5248]
[1731013758137,7.75643658,197.79,197.72,7.75643658]
[1731013758339,7.75643658,197.81,197.75,10.28163658]
[1731013758541,1.2744,197.83,197.77,7.75643658]
[1731013758736,1.2744,197.83,197.79,7.75643658]
[1731013759038,2.5315,197.85,197.8,7.75643658]
[1731013759238,0.75681441,197.84,197.8,7.75643658]
[1731013761236,0.75680715,197.84,197.79,7.75643658]
[1731013762029,0.75680715,197.84,197.81,7.75643658]
[1731013762238,0.75680715,197.86,197.74,1.2505]
[1731013762434,2.5242,197.84,197.79,10.28113658]
[1731013763337,7.75643658,197.85,197.79,10.28113658]
[1731013763534,0.75677,197.84,197.79,10.28113658]
[1731013763839,7.75643658,197.85,197.8,2.5246]
[1731013764532,11.41643658,197.87,197.81,10.28083658]
[1731013764737,0.75667489,197.86,197.81,10.28083658]
[1731013765533,0.75667489,197.86,197.74,3.77263546]
[1731013765534,7.75643658,197.84,197.74,3.77263546]
[1731013765737,7.75643658,197.84,197.77,7.75643658]
[1731013766535,13.78543612,197.84,197.77,7.75643658]
[1731013766735,3.66,197.87,197.77,7.75643658]
[1731013766942,7.75643658,197.85,197.77,7.75643658]
[1731013767140,0.75674747,197.84,197.77,7.75643658]
[1731013767447,0.75674747,197.84,197.8,2.5246]
[1731013767640,7.75643658,197.84,197.77,7.75643658]
[1731013768444,7.75643658,197.84,197.8,2.5246]
[1731013769536,7.75643658,197.84,197.81,2.5244]
[1731013770449,2.5239,197.86,197.81,2.5244]
[1731013770635,7.75643658,197.85,197.81,2.5244]
[1731013771350,2.5239,197.86,197.81,2.5244]
[1731013771548,7.75643658,197.85,197.81,2.5244]
[1731013771737,2.5239,197.86,197.81,2.5244]
[1731013771944,7.75643658,197.85,197.8,2.5246]
[1731013774549,7.75643658,197.85,197.79,7.75643658]
[1731013774852,7.75643658,197.83,197.78,2.5248]
[1731013775348,7.75643658,197.83,197.77,7.75643658]
[1731013776952,2.5247,197.79,197.65,4.98640329]
[1731013777259,2.5247,197.79,197.73,2.5254]
[1731013777457,2.5247,197.79,197.74,7.75643658]
[1731013779459,2.5247,197.79,197.74,10.28173658]
[1731013780559,7.75643658,197.8,197.75,2.5252]
[1731013781256,10.28173658,197.75,197.69,7.75643658]
[1731013781460,7.75643658,197.75,197.69,7.75643658]
[1731013782256,7.75643658,197.77,197.71,7.75643658]
[1731013782451,1.202,197.78,197.73,7.75643658]
[1731013782647,7.75643658,197.8,197.73,7.75643658]
[1731013782852,0.75699681,197.79,197.75,2.5252]
[1731013783047,0.75699681,197.79,197.73,7.75643658]
[1731013783247,7.75643658,197.8,197.73,7.75643658]
[1731013783564,10.28133658,197.78,197.73,10.28193658]
[1731013783748,7.75643658,197.78,197.73,10.28193658]
[1731013784553,7.75643658,197.79,197.74,2.5254]
[1731013786049,0.75698408,197.78,197.74,2.5254]
[1731013786651,0.75698408,197.78,197.73,10.28183658]
[1731013787454,0.75700965,197.77,197.73,10.28183658]
[1731013787650,10.28123658,197.79,197.73,10.28183658]
[1731013788058,0.75700703,197.78,197.73,10.28183658]
[1731013790457,0.75700703,197.78,197.74,2.5253]
[1731013790658,6.0749,197.81,197.74,2.5253]
[1731013790659,0.75700703,197.77,197.74,2.5253]
[1731013790862,7.75643658,197.79,197.74,2.5253]
[1731013791064,0.75698856,197.78,197.74,2.5253]
[1731013791254,0.75698856,197.78,197.75,2.5253]
[1731013791461,7.75643658,197.79,197.75,2.5253]
[1731013791660,0.7569887,197.78,197.75,2.5253]
[1731013793961,0.7569887,197.78,197.75,2.5254]
[1731013794667,0.7569887,197.78,197.74,2.5256]
[1731013795564,7.75643658,197.79,197.74,2.5256]
[1731013795764,0.7570118,197.78,197.74,2.5256]
[1731013796158,0.7570118,197.78,197.73,10.28213658]
[1731013796362,7.75643658,197.77,197.72,7.75643658]
[1731013796666,7.75643658,197.77,197.73,2.5257]
[1731013796869,7.75643658,197.77,197.66,3.66]
[1731013797065,0.7570774,197.76,197.72,7.75643658]
[1731013797870,7.75643658,197.77,197.72,10.28233658]
[1731013798269,13.38709954,197.81,197.72,10.28233658]
[1731013798471,7.75643658,197.77,197.72,7.75643658]
[1731013798777,7.75643658,197.77,197.73,2.5257]
[1731013799570,7.75643658,197.79,197.74,2.5256]
[1731013799870,0.75706952,197.78,197.74,2.5256]
[1731013801771,0.75706952,197.78,197.73,7.75643658]
[1731013801970,7.75643658,197.79,197.73,7.75643658]
[1731013802177,0.75698687,197.78,197.73,7.75643658]
[1731013802668,0.75698687,197.78,197.75,2.5254]
[1731013804574,0.75698687,197.78,197.74,2.5256]
[1731013804975,8.51342345,197.78,197.74,2.5256]
[1731013805164,7.75643658,197.78,197.74,2.5256]
[1731013805366,13.38709954,197.81,197.75,2.5255]
[1731013805367,9.72709954,197.81,197.75,2.5255]
[1731013805567,9.72709954,197.81,197.76,7.75643658]
[1731013805568,0.7570088,197.8,197.76,7.75643658]
[1731013805970,14.99753612,197.81,197.76,7.75643658]
[1731013806170,0.75697545,197.8,197.76,7.75643658]
[1731013806472,0.75697545,197.8,197.74,10.28193658]
[1731013806667,0.75697545,197.8,197.74,7.75643658]
[1731013807067,7.75643658,197.79,197.74,2.5256]
[1731013807274,0.75697545,197.78,197.74,2.5256]
[1731013807577,3.28207545,197.78,197.73,10.28223658]
[1731013807775,0.75697545,197.77,197.73,10.28223658]
[1731013808578,2.5251,197.78,197.69,2.5422]
[1731013808579,7.75643658,197.79,197.75,2.5254]
[1731013808876,0.75702709,197.78,197.75,2.5254]
[1731013809471,0.75702709,197.78,197.76,2.5254]
[1731013809677,7.75643658,197.8,197.76,2.5254]
[1731013809879,0.75700686,197.79,197.76,2.5254]
[1731013810275,7.75643658,197.8,197.76,2.5254]
[1731013810575,0.75698628,197.79,197.76,2.5254]
[1731013812578,0.75698628,197.79,197.77,2.5253]
[1731013812776,0.75698628,197.8,197.77,2.5253]
[1731013813282,7.75643658,197.79,197.75,2.5255]
[1731013813483,0.75698628,197.78,197.75,2.5255]
[1731013813874,0.75701449,197.77,197.75,2.5255]
[1731013814074,10.28133658,197.8,197.75,2.5255]
[1731013814275,0.75699799,197.79,197.74,7.75643658]
[1731013814479,0.75699799,197.79,197.76,2.5253]
[1731013814675,39.00191181,197.83,197.76,7.75643658]
[1731013814876,0.75689813,197.82,197.76,7.75643658]
[1731013815077,0.75689813,197.82,197.77,2.5251]
[1731013817078,0.75689813,197.82,197.78,10.28153658]
[1731013817279,0.75689813,197.81,197.78,10.28153658]
[1731013817480,0.75689813,197.83,197.78,10.28153658]
[1731013817782,0.75683129,197.82,197.78,10.28153658]
[1731013817983,0.75683129,197.81,197.78,10.28153658]
[1731013818176,11.39643658,197.84,197.78,10.28153658]
[1731013818485,3.28133621,197.83,197.78,10.28153658]
[1731013818685,0.75683621,197.82,197.78,10.28153658]
[1731013818886,0.75683621,197.82,197.76,10.28173658]
[1731013818887,8.51327279,197.82,197.76,10.28173658]
[1731013819084,0.75683621,197.81,197.76,10.28173658]
[1731013819384,0.75683621,197.81,197.76,7.75643658]
[1731013820379,9.66189672,197.84,197.79,2.525]
[1731013820688,8.51327454,197.83,197.76,7.75643658]
[1731013820887,0.75683297,197.82,197.76,7.75643658]
[1731013821584,7.75643658,197.83,197.76,7.75643658]
[1731013823583,7.75643658,197.83,197.79,2.5249]
[1731013824390,7.75643658,197.83,197.76,7.75643658]
[1731013824584,7.75643658,197.83,197.8,2.5248]
[1731013824785,2.5241,197.87,197.82,7.75643658]
[1731013825281,10.28033658,197.88,197.82,10.28103658]
[1731013825487,0.75670188,197.87,197.82,10.28103658]
[1731013825684,1.51340376,197.87,197.82,10.28103658]
[1731013825887,0.75670188,197.87,197.82,10.28103658]
[1731013826493,3.28070188,197.87,197.82,10.28103658]
[1731013826787,3.28070188,197.87,197.81,2.5247]
[1731013826788,7.75643658,197.86,197.81,2.5247]
[1731013827884,10.28053658,197.86,197.81,2.5247]
[1731013829089,7.75643658,197.86,197.81,2.5247]
[1731013829293,6.02297883,197.89,197.76,3.64]
[1731013829294,7.3333,197.9,197.82,10.28103658]
[1731013829494,7.3333,197.9,197.77,2.5051]
[1731013829495,7.75643658,197.85,197.77,2.5051]
[1731013829788,7.75643658,197.83,197.8,7.75643658]
[1731013830583,7.75643658,197.83,197.79,2.525]
[1731013831390,7.75643658,197.83,197.8,2.5249]
[1731013831590,6.02297883,197.89,197.8,10.28133658]
[1731013831798,7.3333,197.9,197.8,10.28133658]
[1731013831799,7.75643658,197.85,197.8,10.28133658]
[1731013832195,10.28073658,197.85,197.8,10.28133658]
[1731013832400,2.5243,197.85,197.8,7.75643658]
[1731013832601,7.75643658,197.85,197.81,2.5247]
[1731013833300,7.75643658,197.83,197.81,2.5247]
[1731013834296,7.75643658,197.83,197.79,7.75643658]
[1731013834501,7.75643658,197.81,197.76,7.75643658]
[1731013835102,7.75643658,197.81,197.78,2.5251]
[1731013835303,7.75643658,197.81,197.72,6.1407]
[1731013835304,10.28123658,197.81,197.72,6.1407]
[1731013835604,7.75643658,197.81,197.77,2.5253]
[1731013836003,2.5247,197.82,197.77,2.5253]
[1731013836204,8.51330768,197.81,197.77,2.5253]
[1731013836408,7.75643658,197.81,197.77,2.5253]
[1731013837598,0.7568831,197.8,197.77,2.5253]
[1731013837799,7.75643658,197.81,197.77,2.5253]
[1731013838404,2.5247,197.82,197.75,7.75643658]
[1731013838605,8.51331593,197.81,197.78,2.5251]
[1731013838801,7.75643658,197.81,197.78,2.5251]
[1731013839412,7.75643658,197.81,197.75,7.75643658]
[1731013839710,7.75643658,197.81,197.78,2.5251]
[1731013841813,7.75643658,197.78,197.73,2.5258]
[1731013842314,7.75643658,197.78,197.73,7.75643658]
[1731013842516,7.75643658,197.79,197.75,2.5254]
[1731013842815,0.75697907,197.78,197.75,2.5254]
[1731013843512,7.75643658,197.77,197.74,2.5256]
[1731013843813,7.75643658,197.77,197.71,7.75643658]
[1731013844217,10.28173658,197.77,197.72,2.5259]
[1731013844415,7.75643658,197.76,197.69,7.75643658]
[1731013845318,10.28193658,197.76,197.72,2.5259]
[1731013845519,7.75643658,197.76,197.72,2.5259]
[1731013846207,2.5256,197.75,197.66,1.2812]
[1731013846407,2.5256,197.75,197.69,7.75643658]
[1731013846613,2.5256,197.75,197.66,1.2812]
[1731013846808,7.75643658,197.76,197.69,7.75643658]
[1731013847016,2.5258,197.74,197.69,7.75643658]
[1731013847408,13.77941541,197.76,197.69,7.75643658]
[1731013847613,2.5257,197.74,197.69,7.75643658]
[1731013848819,2.5257,197.74,197.71,2.526]
[1731013850012,2.5254,197.76,197.72,2.5258]
[1731013850214,11.39643658,197.77,197.72,2.5258]
[1731013850415,0.7570906,197.76,197.71,7.75643658]
[1731013850613,0.7570906,197.76,197.66,1.2812]
[1731013850614,8.51352718,197.76,197.72,2.5259]
[1731013850820,7.75643658,197.76,197.72,2.5259]
[1731013851816,6.1653,197.77,197.72,2.5259]
[1731013852017,3.64,197.77,197.73,2.5257]
[1731013852217,5.28459373,197.8,197.66,1.2812]
[1731013852518,0.75701251,197.79,197.75,2.5254]
[1731013853115,10.28143658,197.8,197.75,2.5254]
[1731013853421,0.75698523,197.79,197.74,7.75643658]
[1731013853620,7.75643658,197.8,197.76,2.5254]
[1731013853821,0.75698706,197.79,197.76,2.5254]
[1731013855023,0.75698706,197.79,197.75,2.5255]
[1731013855226,10.28133658,197.8,197.75,2.5255]
[1731013855527,10.28133658,197.8,197.73,7.75643658]
[1731013855726,7.75643658,197.8,197.76,2.5253]
[1731013856720,10.28133658,197.8,197.76,2.5253]
[1731013856916,0.75698652,197.79,197.76,2.5253]
[1731013857224,7.75643658,197.76,197.66,1.2812]
[1731013857523,2.5256,197.75,197.7,2.5261]
[1731013857723,7.75643658,197.76,197.7,7.75643658]
[1731013858819,7.75643658,197.76,197.72,2.5259]
[1731013861216,7.75643658,197.76,197.7,7.75643658]
[1731013862127,7.75643658,197.76,197.72,2.5258]
[1731013862623,10.28163658,197.78,197.72,7.75643658]
[1731013862938,7.75643658,197.78,197.74,2.5257]
[1731013863118,7.75643658,197.78,197.73,7.75643658]
[1731013863429,11.37643658,197.8,197.76,2.5254]
[1731013863634,3.62,197.8,197.75,7.75643658]
[1731013863927,3.62,197.8,197.64,66.23952675]
[1731013863928,7.75643658,197.76,197.64,65.07132675]
[1731013864119,7.75643658,197.75,197.68,7.75643658]
[1731013864324,2.5258,197.73,197.68,7.75643658]
[1731013864533,10.28223658,197.73,197.68,7.75643658]
[1731013865331,2.3872,197.77,197.6,1.2769]
[1731013865332,7.75643658,197.69,197.6,1.2769]
[1731013865530,7.75643658,197.69,197.63,7.75643658]
[1731013866425,7.75643658,197.7,197.65,7.75643658]
[1731013867120,2.5264,197.69,197.63,7.75643658]
[1731013867315,10.28283658,197.69,197.63,7.75643658]
[1731013867725,10.28283658,197.69,197.63,10.28333658]
[1731013867927,7.75643658,197.67,197.56,4.7994]
[1731013868140,7.75643658,197.67,197.6,7.75643658]
[1731013868528,7.75643658,197.65,197.6,7.75643658]
[1731013869331,10.28323658,197.65,197.6,7.75643658]
[1731013870332,7.75643658,197.65,197.6,7.75643658]
[1731013870627,10.28323658,197.65,197.6,7.75643658]
[1731013871530,10.28323658,197.65,197.6,2.5274]
[1731013871828,7.75643658,197.63,197.55,1.2187]
[1731013872138,7.75643658,197.62,197.52,1.2007]
[1731013872325,7.75643658,197.62,197.5,1.1937]
[1731013872522,7.75643658,197.59,197.54,10.28463658]
[1731013872922,7.75643658,197.59,197.54,7.75643658]
[1731013873119,7.75643658,197.58,197.52,7.75643658]